[Event "Titled Tuesday Blitz December 06 Early 2022"]
[White "Kashtanov, Ruslan"]
[Black "Piesik, Piotr"]
[WhiteFideId "4124871"]
[BlackFideId "1136194"]
[WhiteElo "2276"]
[BlackElo "2316"]
[Result "0-1"]
[Round "04"]
[TimeControl "180+1"]
[Date "2022.12.07"]
[WhiteClock "0:00:01"]
[BlackClock "0:00:48"]

1. d4 {[%clk 0:02:55]}  c5 {[%clk 0:02:58]} 2. d5 {[%clk 0:02:54]}  e5 {[%clk 0:02:58]} 3. e4 {[%clk 0:02:53]}  d6 {[%clk 0:02:58]} 4. Nc3 {[%clk 0:02:53]}  Be7 {[%clk 0:02:58]} 5. Nf3 {[%clk 0:02:52]}  a6 {[%clk 0:02:58]} 6. a4 {[%clk 0:02:50]}  Bg4 {[%clk 0:02:58]} 7. a5 {[%clk 0:02:32]}  Nd7 {[%clk 0:02:55]} 8. Bd3 {[%clk 0:02:27]}  Bxf3 {[%clk 0:02:54]} 9. Qxf3 {[%clk 0:02:26]}  Bg5 {[%clk 0:02:55]} 10. Bxg5 {[%clk 0:02:12]}  Qxg5 {[%clk 0:02:56]} 11. h4 {[%clk 0:02:13]}  Qf6 {[%clk 0:02:53]} 12. Qe2 {[%clk 0:01:55]}  Ne7 {[%clk 0:02:51]} 13. h5 {[%clk 0:01:35]}  h6 {[%clk 0:02:51]} 14. Na4 {[%clk 0:01:25]}  Qg5 {[%clk 0:02:46]} 15. g3 {[%clk 0:01:13]}  f5 {[%clk 0:02:41]} 16. c4 {[%clk 0:01:02]}  f4 {[%clk 0:02:36]} 17. g4 {[%clk 0:00:57]}  f3 {[%clk 0:02:35]} 18. Qxf3 {[%clk 0:00:58]}  Rf8 {[%clk 0:02:34]} 19. Qe2 {[%clk 0:00:55]}  Rf4 {[%clk 0:02:32]} 20. f3 {[%clk 0:00:55]}  Kf8 {[%clk 0:02:30]} 21. Rh3 {[%clk 0:00:53]}  Kg8 {[%clk 0:02:30]} 22. Rb1 {[%clk 0:00:52]}  Rc8 {[%clk 0:02:16]} 23. b4 {[%clk 0:00:51]}  cxb4 {[%clk 0:02:17]} 24. Rxb4 {[%clk 0:00:51]}  Rc7 {[%clk 0:02:18]} 25. Kd1 {[%clk 0:00:33]}  Kh7 {[%clk 0:02:09]} 26. Kc2 {[%clk 0:00:30]}  Ng8 {[%clk 0:02:09]} 27. Kb2 {[%clk 0:00:28]}  Ngf6 {[%clk 0:02:08]} 28. Qc2 {[%clk 0:00:16]}  Kg8 {[%clk 0:02:04]} 29. Qb3 {[%clk 0:00:15]}  Nc5 {[%clk 0:01:49]} 30. Nxc5 {[%clk 0:00:15]}  Rxc5 {[%clk 0:01:50]} 31. Rxb7 {[%clk 0:00:15]}  Nxg4 {[%clk 0:01:46]} 32. Rg3 {[%clk 0:00:15]}  Qxh5 {[%clk 0:01:35]} 33. Rxg4 {[%clk 0:00:15]}  Rxg4 {[%clk 0:01:30]} 34. fxg4 {[%clk 0:00:16]}  Qxg4 {[%clk 0:01:30]} 35. Qc3 {[%clk 0:00:04]}  h5 {[%clk 0:01:28]} 36. Rb6 {[%clk 0:00:03]}  h4 {[%clk 0:01:24]} 37. Qe1 {[%clk 0:00:01]}  h3 {[%clk 0:01:19]} 38. Rb8+ {[%clk 0:00:01]}  Kh7 {[%clk 0:01:18]} 39. Be2 {[%clk 0:00:01]}  Qxe4 {[%clk 0:01:11]} 40. Qg3 {[%clk 0:00:01]}  Qd4+ {[%clk 0:01:09]} 41. Kb3 {[%clk 0:00:01]}  Rxa5 {[%clk 0:00:48]} 0-1


[Site "https://www.chess.com"]

[Event "Titled Tuesday Blitz December 06 Early 2022"]
[White "Kazakouski, Valery"]
[Black "Manukyan, Sargis A."]
[WhiteFideId "13507443"]
[BlackFideId "13303970"]
[WhiteElo "2516"]
[BlackElo "2187"]
[Result "1/2-1/2"]
[Round "04"]
[TimeControl "180+1"]
[Date "2022.12.07"]
[WhiteClock "0:00:08"]
[BlackClock "0:00:11"]

1. Nf3 {[%clk 0:03:00]}  Nf6 {[%clk 0:02:41]} 2. c4 {[%clk 0:03:00]}  c5 {[%clk 0:02:39]} 3. b3 {[%clk 0:03:00]}  g6 {[%clk 0:02:37]} 4. Bb2 {[%clk 0:03:00]}  Bg7 {[%clk 0:02:38]} 5. g3 {[%clk 0:03:01]}  O-O {[%clk 0:02:38]} 6. Bg2 {[%clk 0:03:01]}  Nc6 {[%clk 0:02:38]} 7. O-O {[%clk 0:03:01]}  a6 {[%clk 0:02:35]} 8. d4 {[%clk 0:02:56]}  cxd4 {[%clk 0:02:07]} 9. Nxd4 {[%clk 0:02:57]}  Rb8 {[%clk 0:02:07]} 10. c5 {[%clk 0:02:40]}  Qa5 {[%clk 0:01:50]} 11. Qc1 {[%clk 0:02:31]}  Ng4 {[%clk 0:01:29]} 12. e3 {[%clk 0:02:27]}  Nge5 {[%clk 0:01:15]} 13. Rd1 {[%clk 0:02:27]}  Nb4 {[%clk 0:01:07]} 14. Qc3 {[%clk 0:02:22]}  b6 {[%clk 0:00:49]} 15. a3 {[%clk 0:02:11]}  Nbc6 {[%clk 0:00:29]} 16. Nxc6 {[%clk 0:01:39]}  dxc6 {[%clk 0:00:26]} 17. Qxa5 {[%clk 0:01:34]}  bxa5 {[%clk 0:00:27]} 18. Nd2 {[%clk 0:01:34]}  Be6 {[%clk 0:00:26]} 19. Bd4 {[%clk 0:01:27]}  Bxb3 {[%clk 0:00:18]} 20. Nxb3 {[%clk 0:01:28]}  Rxb3 {[%clk 0:00:18]} 21. h3 {[%clk 0:01:19]}  Rc8 {[%clk 0:00:16]} 22. a4 {[%clk 0:01:16]}  Nd3 {[%clk 0:00:14]} 23. Bf1 {[%clk 0:01:08]}  Bxd4 {[%clk 0:00:11]} 24. exd4 {[%clk 0:01:09]}  Nb4 {[%clk 0:00:11]} 25. Rd2 {[%clk 0:01:03]}  Rd8 {[%clk 0:00:10]} 26. Kg2 {[%clk 0:00:43]}  e6 {[%clk 0:00:10]} 27. h4 {[%clk 0:00:42]}  Rc3 {[%clk 0:00:10]} 28. Rdd1 {[%clk 0:00:38]}  Rb3 {[%clk 0:00:06]} 29. h5 {[%clk 0:00:30]}  Kg7 {[%clk 0:00:06]} 30. hxg6 {[%clk 0:00:30]}  hxg6 {[%clk 0:00:07]} 31. Be2 {[%clk 0:00:31]}  Rc3 {[%clk 0:00:07]} 32. Rab1 {[%clk 0:00:29]}  Ra3 {[%clk 0:00:07]} 33. Rd2 {[%clk 0:00:17]}  Rxa4 {[%clk 0:00:07]} 34. Bc4 {[%clk 0:00:16]}  Ra3 {[%clk 0:00:07]} 35. Kf1 {[%clk 0:00:15]}  Kf6 {[%clk 0:00:07]} 36. Ke1 {[%clk 0:00:15]}  a4 {[%clk 0:00:07]} 37. Kd1 {[%clk 0:00:14]}  a5 {[%clk 0:00:07]} 38. Be2 {[%clk 0:00:13]}  Rc3 {[%clk 0:00:07]} 39. Rc1 {[%clk 0:00:13]}  Rxc1+ {[%clk 0:00:07]} 40. Kxc1 {[%clk 0:00:14]}  a3 {[%clk 0:00:08]} 41. Kb1 {[%clk 0:00:15]}  a2+ {[%clk 0:00:08]} 42. Ka1 {[%clk 0:00:15]}  Kf5 {[%clk 0:00:09]} 43. Bf3 {[%clk 0:00:12]}  Rxd4 {[%clk 0:00:08]} 44. Rxd4 {[%clk 0:00:10]}  Nc2+ {[%clk 0:00:09]} 45. Kxa2 {[%clk 0:00:11]}  Nxd4 {[%clk 0:00:09]} 46. Bg2 {[%clk 0:00:12]}  Ke5 {[%clk 0:00:09]} 47. Ka3 {[%clk 0:00:11]}  f5 {[%clk 0:00:09]} 48. Ka4 {[%clk 0:00:11]}  f4 {[%clk 0:00:08]} 49. gxf4+ {[%clk 0:00:09]}  Kxf4 {[%clk 0:00:08]} 50. Kxa5 {[%clk 0:00:10]}  e5 {[%clk 0:00:09]} 51. Kb6 {[%clk 0:00:10]}  g5 {[%clk 0:00:10]} 52. Bxc6 {[%clk 0:00:08]}  Nb3 {[%clk 0:00:09]} 53. Bd5 {[%clk 0:00:07]}  Nxc5 {[%clk 0:00:08]} 54. Kxc5 {[%clk 0:00:08]}  e4 {[%clk 0:00:09]} 55. Kd4 {[%clk 0:00:08]}  g4 {[%clk 0:00:10]} 56. Bxe4 {[%clk 0:00:09]}  g3 {[%clk 0:00:10]} 57. fxg3+ {[%clk 0:00:08]}  Kxg3 {[%clk 0:00:11]} 1/2-1/2


[Site "https://www.chess.com"]

[Event "Titled Tuesday Blitz December 06 Early 2022"]
[White "Kuchava, Ana"]
[Black "Devaev, Alexander"]
[WhiteFideId "13605348"]
[BlackFideId "4169395"]
[WhiteElo "2001"]
[BlackElo "2225"]
[Result "0-1"]
[Round "04"]
[TimeControl "180+1"]
[Date "2022.12.07"]
[WhiteClock "0:00:01"]
[BlackClock "0:00:08"]

1. d4 {[%clk 0:03:00]}  Nf6 {[%clk 0:02:54]} 2. Nf3 {[%clk 0:02:59]}  e6 {[%clk 0:02:51]} 3. c4 {[%clk 0:02:57]}  c5 {[%clk 0:02:50]} 4. d5 {[%clk 0:02:56]}  exd5 {[%clk 0:02:51]} 5. cxd5 {[%clk 0:02:57]}  d6 {[%clk 0:02:52]} 6. Nc3 {[%clk 0:02:57]}  g6 {[%clk 0:02:52]} 7. e4 {[%clk 0:02:44]}  Bg7 {[%clk 0:02:52]} 8. Bd3 {[%clk 0:02:44]}  O-O {[%clk 0:02:52]} 9. O-O {[%clk 0:02:42]}  Bg4 {[%clk 0:02:52]} 10. a4 {[%clk 0:02:37]}  Nbd7 {[%clk 0:02:49]} 11. h3 {[%clk 0:02:35]}  Bxf3 {[%clk 0:02:49]} 12. Qxf3 {[%clk 0:02:36]}  Ne5 {[%clk 0:02:48]} 13. Qd1 {[%clk 0:02:36]}  Re8 {[%clk 0:02:49]} 14. Bf4 {[%clk 0:02:33]}  a6 {[%clk 0:02:46]} 15. Qc2 {[%clk 0:02:22]}  Qb6 {[%clk 0:02:42]} 16. a5 {[%clk 0:02:18]}  Qc7 {[%clk 0:02:38]} 17. Rfe1 {[%clk 0:02:14]}  h6 {[%clk 0:02:35]} 18. Bd2 {[%clk 0:01:59]}  Nfd7 {[%clk 0:02:08]} 19. Bf1 {[%clk 0:01:45]}  g5 {[%clk 0:02:07]} 20. Na4 {[%clk 0:01:28]}  Rac8 {[%clk 0:01:52]} 21. Rac1 {[%clk 0:01:21]}  Qd8 {[%clk 0:01:49]} 22. Qb3 {[%clk 0:01:12]}  Rb8 {[%clk 0:01:42]} 23. Qa3 {[%clk 0:01:06]}  Rc8 {[%clk 0:01:15]} 24. b4 {[%clk 0:00:44]}  c4 {[%clk 0:01:07]} 25. Nb2 {[%clk 0:00:34]}  b5 {[%clk 0:01:01]} 26. axb6 {[%clk 0:00:33]}  Qxb6 {[%clk 0:01:01]} 27. Nxc4 {[%clk 0:00:33]}  Nxc4 {[%clk 0:01:01]} 28. Bxc4 {[%clk 0:00:34]}  Ra8 {[%clk 0:01:01]} 29. Qa5 {[%clk 0:00:33]}  Qb7 {[%clk 0:00:58]} 30. Bb3 {[%clk 0:00:30]}  Nb6 {[%clk 0:00:47]} 31. Rc6 {[%clk 0:00:29]}  Rab8 {[%clk 0:00:37]} 32. Be3 {[%clk 0:00:28]}  Na8 {[%clk 0:00:29]} 33. Rxd6 {[%clk 0:00:28]}  Bf8 {[%clk 0:00:27]} 34. Rxa6 {[%clk 0:00:27]}  Bxb4 {[%clk 0:00:28]} 35. Qa4 {[%clk 0:00:13]}  Bxe1 {[%clk 0:00:28]} 36. Bc4 {[%clk 0:00:12]}  Qb1 {[%clk 0:00:19]} 37. Kh2 {[%clk 0:00:11]}  Bc3 {[%clk 0:00:19]} 38. Ra7 {[%clk 0:00:09]}  Be5+ {[%clk 0:00:19]} 39. g3 {[%clk 0:00:09]}  Nb6 {[%clk 0:00:14]} 40. Qc6 {[%clk 0:00:07]}  Nxc4 {[%clk 0:00:13]} 41. Qxc4 {[%clk 0:00:08]}  Qb3 {[%clk 0:00:12]} 42. Qc6 {[%clk 0:00:08]}  Qb5 {[%clk 0:00:11]} 43. Qc2 {[%clk 0:00:06]}  Rbc8 {[%clk 0:00:10]} 44. Qa2 {[%clk 0:00:06]}  Qb8 {[%clk 0:00:10]} 45. Rd7 {[%clk 0:00:05]}  Rcd8 {[%clk 0:00:10]} 46. Ba7 {[%clk 0:00:03]}  Qa8 {[%clk 0:00:09]} 47. Rxd8 {[%clk 0:00:02]}  Rxd8 {[%clk 0:00:09]} 48. Qa3 {[%clk 0:00:01]}  Bb8 {[%clk 0:00:08]} 0-1


[Site "https://www.chess.com"]

[Event "Titled Tuesday Blitz December 06 Early 2022"]
[White "Lakshmi C"]
[Black "Zaragatski, Ilja"]
[WhiteFideId "25035347"]
[BlackFideId "4655192"]
[WhiteElo "1942"]
[BlackElo "2460"]
[Result "0-1"]
[Round "04"]
[TimeControl "180+1"]
[Date "2022.12.07"]
[WhiteClock "0:00:01"]
[BlackClock "0:00:17"]

1. e4 {[%clk 0:02:54]}  e6 {[%clk 0:02:58]} 2. d4 {[%clk 0:02:48]}  d5 {[%clk 0:02:58]} 3. Nc3 {[%clk 0:02:43]}  Nc6 {[%clk 0:02:56]} 4. e5 {[%clk 0:02:36]}  a6 {[%clk 0:02:53]} 5. f4 {[%clk 0:02:31]}  Nh6 {[%clk 0:02:52]} 6. Nf3 {[%clk 0:02:29]}  Nf5 {[%clk 0:02:50]} 7. g4 {[%clk 0:02:18]}  Nh4 {[%clk 0:02:49]} 8. Be3 {[%clk 0:02:18]}  h5 {[%clk 0:02:47]} 9. Ng5 {[%clk 0:02:10]}  hxg4 {[%clk 0:02:44]} 10. Qxg4 {[%clk 0:02:07]}  Nf5 {[%clk 0:02:43]} 11. Qg1 {[%clk 0:01:59]}  Bb4 {[%clk 0:02:21]} 12. Bd3 {[%clk 0:01:36]}  Bd7 {[%clk 0:02:09]} 13. Bf2 {[%clk 0:01:28]}  Nce7 {[%clk 0:02:00]} 14. a3 {[%clk 0:01:27]}  Bxc3+ {[%clk 0:01:59]} 15. bxc3 {[%clk 0:01:27]}  Bb5 {[%clk 0:01:58]} 16. h4 {[%clk 0:01:16]}  Qd7 {[%clk 0:01:51]} 17. h5 {[%clk 0:00:19]}  Nh6 {[%clk 0:01:28]} 18. Qf1 {[%clk 0:00:15]}  Nef5 {[%clk 0:01:27]} 19. Qe2 {[%clk 0:00:13]}  O-O-O {[%clk 0:01:21]} 20. Kd2 {[%clk 0:00:13]}  Kb8 {[%clk 0:01:21]} 21. Rhb1 {[%clk 0:00:11]}  Bxd3 {[%clk 0:01:15]} 22. Qxd3 {[%clk 0:00:11]}  Qc6 {[%clk 0:01:14]} 23. Qe2 {[%clk 0:00:10]}  Ka7 {[%clk 0:01:00]} 24. Rb4 {[%clk 0:00:07]}  b6 {[%clk 0:01:00]} 25. Rab1 {[%clk 0:00:06]}  Rhe8 {[%clk 0:00:36]} 26. Kc1 {[%clk 0:00:06]}  f6 {[%clk 0:00:35]} 27. Nf3 {[%clk 0:00:05]}  Qxc3 {[%clk 0:00:33]} 28. Ra4 {[%clk 0:00:05]}  a5 {[%clk 0:00:31]} 29. Rb3 {[%clk 0:00:03]}  Qc6 {[%clk 0:00:31]} 30. Qb5 {[%clk 0:00:01]}  Qxb5 {[%clk 0:00:26]} 31. Rb1 {[%clk 0:00:02]}  Ng4 {[%clk 0:00:26]} 32. Rxb5 {[%clk 0:00:03]}  Nxf2 {[%clk 0:00:18]} 33. Raxa5+ {[%clk 0:00:01]}  bxa5 {[%clk 0:00:17]} 0-1


[Site "https://www.chess.com"]

[Event "Titled Tuesday Blitz December 06 Early 2022"]
[White "Le, Tuan Minh"]
[Black "Rustemov, Alexander"]
[WhiteFideId "12401153"]
[BlackFideId "4119002"]
[WhiteElo "2530"]
[BlackElo "2804"]
[Result "1-0"]
[Round "04"]
[TimeControl "180+1"]
[Date "2022.12.06"]
[WhiteClock "0:01:05"]
[BlackClock "0:01:54"]

1. d4 {[%clk 0:03:00]}  d5 {[%clk 0:02:55]} 2. Nf3 {[%clk 0:03:01]}  Nf6 {[%clk 0:02:55]} 3. Bf4 {[%clk 0:03:01]}  c5 {[%clk 0:02:55]} 4. c3 {[%clk 0:03:01]}  e6 {[%clk 0:02:50]} 5. e3 {[%clk 0:03:01]}  Bd6 {[%clk 0:02:49]} 6. Nbd2 {[%clk 0:03:00]}  O-O {[%clk 0:02:46]} 7. Bd3 {[%clk 0:03:00]}  b6 {[%clk 0:02:44]} 8. Qe2 {[%clk 0:03:00]}  Bb7 {[%clk 0:02:44]} 9. O-O {[%clk 0:02:59]}  Qc7 {[%clk 0:02:41]} 10. Bxd6 {[%clk 0:02:58]}  Qxd6 {[%clk 0:02:41]} 11. Ne5 {[%clk 0:02:59]}  a5 {[%clk 0:02:38]} 12. f4 {[%clk 0:02:58]}  Ba6 {[%clk 0:02:38]} 13. Rf3 {[%clk 0:02:49]}  Bxd3 {[%clk 0:02:36]} 14. Qxd3 {[%clk 0:02:49]}  Nbd7 {[%clk 0:02:34]} 15. Rh3 {[%clk 0:02:49]}  c4 {[%clk 0:02:29]} 16. Qb1 {[%clk 0:02:36]}  b5 {[%clk 0:02:27]} 17. g4 {[%clk 0:02:34]}  g6 {[%clk 0:02:26]} 18. Qe1 {[%clk 0:02:32]}  Kg7 {[%clk 0:02:18]} 19. Qh4 {[%clk 0:02:22]}  h5 {[%clk 0:02:14]} 20. gxh5 {[%clk 0:01:39]}  Nxh5 {[%clk 0:02:11]} 21. Kh1 {[%clk 0:01:39]}  Rh8 {[%clk 0:02:10]} 22. Rg1 {[%clk 0:01:39]}  Nhf6 {[%clk 0:01:56]} 23. Qg3 {[%clk 0:01:04]}  Rxh3 {[%clk 0:01:55]} 24. Qxh3 {[%clk 0:01:05]}  Rh8 {[%clk 0:01:54]} 25. Qxh8+ {[%clk 0:01:05]} 1-0


[Site "https://www.chess.com"]

[Event "Titled Tuesday Blitz December 06 Early 2022"]
[White "Lenderman, Aleksandr"]
[Black "Corrales Jimenez, Fidel"]
[WhiteFideId "2021285"]
[BlackFideId "3506690"]
[WhiteElo "2607"]
[BlackElo "2541"]
[Result "1-0"]
[Round "04"]
[TimeControl "180+1"]
[Date "2022.12.06"]
[WhiteClock "0:01:11"]
[BlackClock "0:00:34"]

1. e4 {[%clk 0:03:00]}  c5 {[%clk 0:02:59]} 2. d4 {[%clk 0:03:00]}  cxd4 {[%clk 0:02:59]} 3. c3 {[%clk 0:03:01]}  dxc3 {[%clk 0:03:00]} 4. Nxc3 {[%clk 0:03:01]}  Nc6 {[%clk 0:03:01]} 5. Nf3 {[%clk 0:03:01]}  d6 {[%clk 0:03:02]} 6. Bc4 {[%clk 0:03:01]}  a6 {[%clk 0:03:02]} 7. e5 {[%clk 0:03:01]}  dxe5 {[%clk 0:03:01]} 8. Qxd8+ {[%clk 0:03:01]}  Nxd8 {[%clk 0:03:02]} 9. Nd5 {[%clk 0:03:01]}  Rb8 {[%clk 0:02:34]} 10. Nxe5 {[%clk 0:02:56]}  e6 {[%clk 0:02:34]} 11. Nc7+ {[%clk 0:02:55]}  Ke7 {[%clk 0:02:34]} 12. Be3 {[%clk 0:02:51]}  Kd6 {[%clk 0:02:28]} 13. Bf4 {[%clk 0:02:51]}  g5 {[%clk 0:02:07]} 14. Nxf7+ {[%clk 0:02:47]}  Ke7 {[%clk 0:02:06]} 15. Nxg5 {[%clk 0:02:43]}  Bg7 {[%clk 0:01:41]} 16. O-O-O {[%clk 0:02:41]}  e5 {[%clk 0:01:38]} 17. Rhe1 {[%clk 0:02:25]}  Nc6 {[%clk 0:01:38]} 18. Nf7 {[%clk 0:02:24]}  Bf5 {[%clk 0:01:18]} 19. Nxe5 {[%clk 0:02:15]}  Nxe5 {[%clk 0:01:10]} 20. Bxe5 {[%clk 0:02:16]}  Bxe5 {[%clk 0:01:10]} 21. Rxe5+ {[%clk 0:02:15]}  Kf6 {[%clk 0:01:11]} 22. f4 {[%clk 0:02:14]}  Rc8 {[%clk 0:01:09]} 23. Rd6+ {[%clk 0:02:11]}  Kg7 {[%clk 0:01:08]} 24. Ne8+ {[%clk 0:02:03]}  Kf8 {[%clk 0:01:02]} 25. Rxf5+ {[%clk 0:01:58]}  Kxe8 {[%clk 0:01:03]} 26. Re5+ {[%clk 0:01:35]}  Ne7 {[%clk 0:01:03]} 27. b3 {[%clk 0:01:34]}  b5 {[%clk 0:01:02]} 28. Rde6 {[%clk 0:01:35]}  Rc7 {[%clk 0:01:02]} 29. Rxa6 {[%clk 0:01:35]}  bxc4 {[%clk 0:00:36]} 30. Ra8+ {[%clk 0:01:34]}  Kf7 {[%clk 0:00:36]} 31. Rxh8 {[%clk 0:01:34]}  cxb3+ {[%clk 0:00:37]} 32. Kb2 {[%clk 0:01:33]}  Kg7 {[%clk 0:00:37]} 33. Re8 {[%clk 0:01:31]}  Ng6 {[%clk 0:00:38]} 34. axb3 {[%clk 0:01:28]}  Kf7 {[%clk 0:00:37]} 35. g3 {[%clk 0:01:27]}  Rd7 {[%clk 0:00:37]} 36. Re2 {[%clk 0:01:26]}  h5 {[%clk 0:00:35]} 37. f5 {[%clk 0:01:25]}  Nf8 {[%clk 0:00:35]} 38. b4 {[%clk 0:01:21]}  Nh7 {[%clk 0:00:36]} 39. R8e5 {[%clk 0:01:15]}  Nf6 {[%clk 0:00:36]} 40. b5 {[%clk 0:01:15]}  Rb7 {[%clk 0:00:35]} 41. Kb3 {[%clk 0:01:15]}  Ng4 {[%clk 0:00:35]} 42. Rc5 {[%clk 0:01:14]}  Nf6 {[%clk 0:00:35]} 43. Kb4 {[%clk 0:01:14]}  Nd7 {[%clk 0:00:35]} 44. Rc6 {[%clk 0:01:13]}  Nb8 {[%clk 0:00:35]} 45. Rh6 {[%clk 0:01:11]}  Kg7 {[%clk 0:00:34]} 46. Ree6 {[%clk 0:01:11]}  Nd7 {[%clk 0:00:33]} 47. Reg6+ {[%clk 0:01:11]}  Kf8 {[%clk 0:00:33]} 48. Rh8+ {[%clk 0:01:11]}  Kf7 {[%clk 0:00:34]} 49. Rh7+ {[%clk 0:01:11]}  Kf8 {[%clk 0:00:34]} 50. Rgg7 {[%clk 0:01:11]} 1-0


[Site "https://www.chess.com"]

[Event "Titled Tuesday Blitz December 06 Early 2022"]
[White "Lohani, Sujana"]
[Black "Skibbe, Willi"]
[WhiteFideId "12311987"]
[BlackFideId "4682190"]
[WhiteElo "1718"]
[BlackElo "2359"]
[Result "0-1"]
[Round "04"]
[TimeControl "180+1"]
[Date "2022.12.07"]
[WhiteClock "0:00:01"]
[BlackClock "0:00:27"]

1. d4 {[%clk 0:03:00]}  d5 {[%clk 0:02:58]} 2. Nf3 {[%clk 0:03:01]}  Nf6 {[%clk 0:02:58]} 3. c4 {[%clk 0:03:02]}  c6 {[%clk 0:02:57]} 4. e3 {[%clk 0:02:59]}  e6 {[%clk 0:02:55]} 5. Nc3 {[%clk 0:02:58]}  Nbd7 {[%clk 0:02:42]} 6. Be2 {[%clk 0:02:56]}  dxc4 {[%clk 0:02:42]} 7. Bxc4 {[%clk 0:02:55]}  b5 {[%clk 0:02:41]} 8. Bd3 {[%clk 0:02:55]}  a6 {[%clk 0:02:21]} 9. O-O {[%clk 0:02:53]}  c5 {[%clk 0:02:17]} 10. dxc5 {[%clk 0:02:46]}  Bxc5 {[%clk 0:02:15]} 11. Ne4 {[%clk 0:02:41]}  Be7 {[%clk 0:02:14]} 12. Bc2 {[%clk 0:02:11]}  Qc7 {[%clk 0:02:12]} 13. Bd2 {[%clk 0:02:00]}  Bb7 {[%clk 0:02:10]} 14. Nxf6+ {[%clk 0:01:52]}  Bxf6 {[%clk 0:02:11]} 15. Bb4 {[%clk 0:01:28]}  Bxb2 {[%clk 0:01:21]} 16. Bd6 {[%clk 0:01:19]}  Qc6 {[%clk 0:01:11]} 17. Rb1 {[%clk 0:01:14]}  Be5 {[%clk 0:01:11]} 18. Ba3 {[%clk 0:00:59]}  Bf6 {[%clk 0:00:57]} 19. e4 {[%clk 0:00:36]}  Be7 {[%clk 0:00:55]} 20. Bxe7 {[%clk 0:00:23]}  Kxe7 {[%clk 0:00:56]} 21. Qd2 {[%clk 0:00:21]}  f6 {[%clk 0:00:51]} 22. Rfc1 {[%clk 0:00:19]}  Qd6 {[%clk 0:00:48]} 23. Qe3 {[%clk 0:00:18]}  Rac8 {[%clk 0:00:39]} 24. Bb3 {[%clk 0:00:16]}  Rxc1+ {[%clk 0:00:37]} 25. Rxc1 {[%clk 0:00:16]}  Rc8 {[%clk 0:00:37]} 26. Re1 {[%clk 0:00:15]}  Nc5 {[%clk 0:00:33]} 27. Bd1 {[%clk 0:00:14]}  Nd3 {[%clk 0:00:31]} 28. Rf1 {[%clk 0:00:13]}  Ne5 {[%clk 0:00:31]} 29. Nd4 {[%clk 0:00:12]}  Rd8 {[%clk 0:00:28]} 30. Nb3 {[%clk 0:00:01]}  Qxd1 {[%clk 0:00:27]} 0-1


[Site "https://www.chess.com"]

[Event "Titled Tuesday Blitz December 06 Early 2022"]
[White "Maksimovic, Bojan"]
[Black "Demin, Vladimir"]
[WhiteFideId "14408120"]
[BlackFideId "4167457"]
[WhiteElo "2462"]
[BlackElo "2563"]
[Result "1-0"]
[Round "04"]
[TimeControl "180+1"]
[Date "2022.12.07"]
[WhiteClock "0:00:09"]
[BlackClock "0:00:37"]

1. e4 {[%clk 0:02:58]}  e5 {[%clk 0:02:30]} 2. Nf3 {[%clk 0:02:51]}  Nc6 {[%clk 0:02:30]} 3. Bb5 {[%clk 0:02:51]}  Nge7 {[%clk 0:02:29]} 4. O-O {[%clk 0:02:49]}  a6 {[%clk 0:02:26]} 5. Ba4 {[%clk 0:02:49]}  g6 {[%clk 0:02:21]} 6. c3 {[%clk 0:02:49]}  Bg7 {[%clk 0:02:16]} 7. d4 {[%clk 0:02:49]}  exd4 {[%clk 0:02:16]} 8. cxd4 {[%clk 0:02:49]}  b5 {[%clk 0:02:16]} 9. Bc2 {[%clk 0:02:50]}  d6 {[%clk 0:02:14]} 10. d5 {[%clk 0:02:50]}  Ne5 {[%clk 0:02:11]} 11. Nxe5 {[%clk 0:02:44]}  dxe5 {[%clk 0:02:12]} 12. a4 {[%clk 0:02:40]}  Bb7 {[%clk 0:02:09]} 13. axb5 {[%clk 0:02:35]}  axb5 {[%clk 0:02:10]} 14. Rxa8 {[%clk 0:02:35]}  Qxa8 {[%clk 0:02:07]} 15. Nc3 {[%clk 0:02:35]}  Ba6 {[%clk 0:01:54]} 16. Bd3 {[%clk 0:02:32]}  b4 {[%clk 0:01:53]} 17. Qa4+ {[%clk 0:02:29]}  c6 {[%clk 0:01:49]} 18. Bxa6 {[%clk 0:01:07]}  bxc3 {[%clk 0:01:47]} 19. d6 {[%clk 0:01:06]}  Nc8 {[%clk 0:01:43]} 20. d7+ {[%clk 0:00:44]}  Kxd7 {[%clk 0:01:42]} 21. Rd1+ {[%clk 0:00:44]}  Nd6 {[%clk 0:01:29]} 22. bxc3 {[%clk 0:00:41]}  Rd8 {[%clk 0:01:26]} 23. Qc4 {[%clk 0:00:28]}  Ke7 {[%clk 0:01:22]} 24. Ba3 {[%clk 0:00:27]}  Qb8 {[%clk 0:01:19]} 25. Qxc6 {[%clk 0:00:24]}  Bf8 {[%clk 0:01:18]} 26. h4 {[%clk 0:00:17]}  Kf6 {[%clk 0:01:18]} 27. Be2 {[%clk 0:00:12]}  Kg7 {[%clk 0:01:18]} 28. h5 {[%clk 0:00:11]}  Kg8 {[%clk 0:01:00]} 29. h6 {[%clk 0:00:10]}  Nb7 {[%clk 0:00:55]} 30. Rxd8 {[%clk 0:00:06]}  Nxd8 {[%clk 0:00:56]} 31. Qf6 {[%clk 0:00:02]}  Bxh6 {[%clk 0:00:53]} 32. Bd6 {[%clk 0:00:02]}  Qc8 {[%clk 0:00:51]} 33. Bxe5 {[%clk 0:00:02]}  Kf8 {[%clk 0:00:46]} 34. Bd6+ {[%clk 0:00:03]}  Kg8 {[%clk 0:00:45]} 35. Be5 {[%clk 0:00:03]}  Kf8 {[%clk 0:00:45]} 36. Qh8+ {[%clk 0:00:04]}  Ke7 {[%clk 0:00:45]} 37. Bf6+ {[%clk 0:00:04]}  Kd7 {[%clk 0:00:44]} 38. Bg4+ {[%clk 0:00:04]}  Ne6 {[%clk 0:00:43]} 39. Bxe6+ {[%clk 0:00:05]}  fxe6 {[%clk 0:00:42]} 40. Qxh7+ {[%clk 0:00:05]}  Kd6 {[%clk 0:00:42]} 41. Qxh6 {[%clk 0:00:06]}  Qc4 {[%clk 0:00:41]} 42. Qf4+ {[%clk 0:00:06]}  Kd7 {[%clk 0:00:39]} 43. Qe5 {[%clk 0:00:07]}  Qe2 {[%clk 0:00:39]} 44. Qd4+ {[%clk 0:00:07]}  Ke8 {[%clk 0:00:39]} 45. g3 {[%clk 0:00:08]}  Kf7 {[%clk 0:00:40]} 46. Be5 {[%clk 0:00:07]}  Qe1+ {[%clk 0:00:40]} 47. Kg2 {[%clk 0:00:07]}  Qe2 {[%clk 0:00:40]} 48. Qd7+ {[%clk 0:00:08]}  Kg8 {[%clk 0:00:37]} 49. Qe8+ {[%clk 0:00:08]}  Kh7 {[%clk 0:00:37]} 50. Qh8# {[%clk 0:00:09]} 1-0


[Site "https://www.chess.com"]